[Event "Sunway Sitges Chess Festival"]
[Date "2024.12.21"]
[White "Gavrilescu, David"]
[Black "Moussard, Jules"]
[WhiteElo "2549"]
[BlackElo "2649"]
[Round "9.1"]
[Result "1/2-1/2"]
[TimeControl "40/5400+30:1800+30"]

1. e4 {[%clk 1:30:57]} 1... e6 {[%clk 1:24:04]} 2. d4 {[%clk 1:30:17]} 2... d5
{[%clk 1:24:28]} 3. Nc3 {[%clk 1:29:26]} 3... Bb4 {[%clk 1:24:52]} 4. exd5
{[%clk 1:25:31]} 4... exd5 {[%clk 1:25:10]} 5. Bd3 {[%clk 1:25:51]} 5... Ne7
{[%clk 1:25:27]} 6. Ne2 {[%clk 1:21:16]} 6... Bf5 {[%clk 1:23:39]} 7. O-O {[%clk
1:19:11]} 7... O-O {[%clk 1:20:55]} 8. a3 {[%clk 1:15:49]} 8... Bxc3 {[%clk
1:19:58]} 9. Nxc3 {[%clk 1:09:03]} 9... Bxd3 {[%clk 1:18:21]} 10. Qxd3 {[%clk
1:09:25]} 10... Nbc6 {[%clk 1:18:05]} 11. Ne2 {[%clk 1:04:05]} 11... Qd7 {[%clk
1:17:24]} 12. c3 {[%clk 1:01:47]} 12... Na5 {[%clk 1:09:11]} 13. Bf4 {[%clk
0:59:02]} 13... Ng6 {[%clk 1:05:18]} 14. Bg3 {[%clk 0:56:05]} 14... Rae8 {[%clk
1:05:13]} 15. Rae1 {[%clk 0:53:25]} 15... Nc4 {[%clk 0:39:14]} 16. b3 {[%clk
0:32:30]} 16... Nd6 {[%clk 0:30:04]} 17. a4 {[%clk 0:27:00]} 17... Re6 {[%clk
0:28:41]} 18. Nf4 {[%clk 0:26:24]} 18... Nxf4 {[%clk 0:23:06]} 19. Bxf4 {[%clk
0:26:48]} 19... Rfe8 {[%clk 0:23:03]} 20. Re5 {[%clk 0:24:52]} 20... c6 {[%clk
0:20:21]} 21. Rfe1 {[%clk 0:24:48]} 21... Rxe5 {[%clk 0:19:12]} 22. Rxe5 {[%clk
0:24:40]} 22... f6 {[%clk 0:19:08]} 23. Rxe8+ {[%clk 0:24:40]} 23... Nxe8 {[%clk
0:19:33]} 24. Kf1 {[%clk 0:22:06]} 24... g6 {[%clk 0:19:28]} 25. h3 {[%clk
0:21:16]} 25... Kf7 {[%clk 0:19:19]} 26. Bb8 {[%clk 0:16:18]} 26... b5 {[%clk
0:15:26]} 27. Bf4 {[%clk 0:12:59]} 27... Ng7 {[%clk 0:14:24]} 28. a5 {[%clk
0:10:44]} 28... Ne6 {[%clk 0:12:03]} 29. Qe3 {[%clk 0:08:52]} 29... a6 {[%clk
0:07:43]} 30. b4 {[%clk 0:08:39]} 30... h5 {[%clk 0:07:39]} 31. Bg3 {[%clk
0:05:56]} 31... g5 {[%clk 0:05:06]} 32. h4 {[%clk 0:04:55]} 32... gxh4 {[%clk
0:05:04]} 33. Bxh4 {[%clk 0:05:19]} 33... Ng7 {[%clk 0:05:21]} 34. Qg3 {[%clk
0:01:32]} 34... Qf5 {[%clk 0:04:28]} 35. Qc7+ {[%clk 0:00:50]} 35... Kg6 {[%clk
0:04:53]} 36. Kg1 {[%clk 0:01:17]} 36... Qg4 {[%clk 0:03:49]} 37. Bg3 {[%clk
0:01:02]} 37... h4 {[%clk 0:02:49]} 38. Bd6 {[%clk 0:01:28]} 38... Qe6 {[%clk
0:00:43]} 39. Qe7 {[%clk 0:00:37]} 39... Qe4 {[%clk 0:00:34]} 40. Qd7 {[%clk
0:30:35]} 40... Nf5 {[%clk 0:30:33]} 41. Kh2 {[%clk 0:21:12]} 41... Qe2 {[%clk
0:19:02]} 42. Qd8 {[%clk 0:15:00]} 42... Qxf2 {[%clk 0:09:00]} 43. Qg8+ {[%clk
0:14:25]} 43... Ng7 {[%clk 0:07:38]} 44. Bf8 {[%clk 0:14:17]} 44... Qg3+ {[%clk
0:06:22]} 45. Kh1 {[%clk 0:14:23]} 45... Qe1+ {[%clk 0:06:00]} 46. Kh2 {[%clk
0:14:52]} 46... Qg3+ {[%clk 0:06:26]} 47. Kh1 {[%clk 0:15:15]} 47... Qe1+ {[%clk
0:05:13]} 48. Kh2 {[%clk 0:15:41]} 48... Qg3+ {[%clk 0:05:40]} 1/2-1/2

[Variant "Standard"]
[Site "Europe Echecs"]

[Event "Sunway Sitges Chess Festival"]
[Date "2024.12.21"]
[White "Vetokhin, Savva"]
[Black "Maurizzi, Marc`Andria"]
[WhiteElo "2502"]
[BlackElo "2477"]
[Round "9.2"]
[Result "1-0"]
[TimeControl "40/5400+30:1800+30"]

1. d4 {[%clk 1:30:55]} 1... d5 {[%clk 1:30:54]} 2. c4 {[%clk 1:31:18]} 2... e6
{[%clk 1:31:22]} 3. Nc3 {[%clk 1:31:38]} 3... c5 {[%clk 1:31:50]} 4. cxd5 {[%clk
1:31:01]} 4... cxd4 {[%clk 1:32:08]} 5. Qa4+ {[%clk 1:30:38]} 5... Bd7 {[%clk
1:32:23]} 6. Qxd4 {[%clk 1:31:05]} 6... exd5 {[%clk 1:32:48]} 7. Qxd5 {[%clk
1:31:21]} 7... Nf6 {[%clk 1:33:14]} 8. Qd1 {[%clk 1:31:08]} 8... Bc5 {[%clk
1:33:37]} 9. Nf3 {[%clk 1:31:22]} 9... O-O {[%clk 1:34:02]} 10. e3 {[%clk
1:31:40]} 10... Qe7 {[%clk 1:33:44]} 11. Be2 {[%clk 1:31:52]} 11... Nc6 {[%clk
1:34:11]} 12. O-O {[%clk 1:31:42]} 12... Ne5 {[%clk 1:34:39]} 13. Nd4 {[%clk
1:25:12]} 13... Nc6 {[%clk 1:35:06]} 14. Nf3 {[%clk 1:12:59]} 14... Ne5 {[%clk
1:35:26]} 15. Qc2 {[%clk 1:11:18]} 15... Rac8 {[%clk 1:32:32]} 16. a3 {[%clk
1:10:30]} 16... Rfe8 {[%clk 1:25:21]} 17. Rd1 {[%clk 1:05:06]} 17... Neg4 {[%clk
1:15:39]} 18. h3 {[%clk 0:46:54]} 18... Nxf2 {[%clk 1:10:05]} 19. Kxf2 {[%clk
0:47:12]} 19... Bxe3+ {[%clk 1:10:30]} 20. Kf1 {[%clk 0:40:16]} 20... Bb6 {[%clk
0:57:16]} 21. Bg5 {[%clk 0:32:07]} 21... Bc6 {[%clk 0:45:31]} 22. Qf5 {[%clk
0:26:23]} 22... Nh5 {[%clk 0:40:56]} 23. Qg4 {[%clk 0:11:52]} 23... Bxf3 {[%clk
0:23:12]} 24. gxf3 {[%clk 0:12:17]} 24... Qc5 {[%clk 0:18:03]} 25. Qg2 {[%clk
0:12:42]} 25... Qe5 {[%clk 0:17:05]} 26. Rd5 {[%clk 0:09:43]} 26... Ng3+ {[%clk
0:13:09]} 27. Ke1 {[%clk 0:10:11]} 27... Qe6 {[%clk 0:09:14]} 28. Rd2 {[%clk
0:10:01]} 28... Rxc3 {[%clk 0:05:56]} 29. Qxg3 {[%clk 0:07:51]} 29... Rd3 {[%clk
0:04:26]} 30. Qg4 {[%clk 0:05:58]} 30... Ba5 {[%clk 0:02:14]} 31. b4 {[%clk
0:04:58]} 31... Qe5 {[%clk 0:02:17]} 32. Rad1 {[%clk 0:04:32]} 32... Rxd2 {[%clk
0:00:33]} 33. Rxd2 {[%clk 0:05:01]} 33... Qa1+ {[%clk 0:00:35]} 34. Rd1 {[%clk
0:05:26]} 34... Qb2 {[%clk 0:00:54]} 35. Qc4 {[%clk 0:04:21]} 35... Bb6 {[%clk
0:00:44]} 36. Qb5 {[%clk 0:03:28]} 36... Re5 {[%clk 0:00:33]} 37. Qd3 {[%clk
0:03:53]} 37... h6 {[%clk 0:00:32]} 38. Bd2 {[%clk 0:03:29]} 38... Re8 {[%clk
0:00:34]} 39. Kf1 {[%clk 0:02:16]} 39... Re6 {[%clk 0:00:32]} 40. Qc3 {[%clk
0:31:09]} 40... Rg6 {[%clk 0:30:40]} 41. Qc8+ {[%clk 0:29:04]} 41... Kh7 {[%clk
0:30:15]} 42. Bd3 {[%clk 0:28:41]} 42... Qd4 {[%clk 0:27:13]} 43. Bxg6+ {[%clk
0:29:06]} 43... fxg6 {[%clk 0:27:42]} 44. Ke2 {[%clk 0:29:31]} 44... Qe5+ {[%clk
0:27:24]} 45. Kd3 {[%clk 0:29:39]} 45... Qd5+ {[%clk 0:27:47]} 46. Kc3 {[%clk
0:29:58]} 1-0

[Variant "Standard"]
[Site "Europe Echecs"]

[Event "Sunway Sitges Chess Festival"]
[Date "2024.12.21"]
[White "Li, Di"]
[Black "Gorshtein, Ido"]
[WhiteElo "2440"]
[BlackElo "2422"]
[Round "9.3"]
[Result "1/2-1/2"]
[TimeControl "40/5400+30:1800+30"]

1. Nf3 {[%clk 1:30:51]} 1... c5 {[%clk 1:30:43]} 2. e4 {[%clk 1:30:51]} 2... d6
{[%clk 1:31:06]} 3. Bb5+ {[%clk 1:30:49]} 3... Nd7 {[%clk 1:31:30]} 4. d4 {[%clk
1:30:39]} 4... cxd4 {[%clk 1:31:46]} 5. Qxd4 {[%clk 1:30:43]} 5... a6 {[%clk
1:30:07]} 6. Bxd7+ {[%clk 1:30:54]} 6... Bxd7 {[%clk 1:30:29]} 7. Nc3 {[%clk
1:30:44]} 7... Nf6 {[%clk 1:29:34]} 8. Bg5 {[%clk 1:30:35]} 8... e6 {[%clk
1:29:56]} 9. O-O-O {[%clk 1:29:27]} 9... Be7 {[%clk 1:28:00]} 10. Bxf6 {[%clk
1:23:17]} 10... gxf6 {[%clk 1:26:55]} 11. Qd3 {[%clk 1:22:28]} 11... O-O {[%clk
1:19:15]} 12. h4 {[%clk 1:16:56]} 12... Kh8 {[%clk 1:15:52]} 13. g4 {[%clk
1:16:01]} 13... Rg8 {[%clk 1:05:48]} 14. g5 {[%clk 1:15:21]} 14... Bc6 {[%clk
1:04:40]} 15. Kb1 {[%clk 1:13:04]} 15... Qa5 {[%clk 0:56:17]} 16. Qe3 {[%clk
1:09:31]} 16... f5 {[%clk 0:41:38]} 17. exf5 {[%clk 1:02:03]} 17... Qxf5 {[%clk
0:41:22]} 18. Nd4 {[%clk 1:02:27]} 18... Qc5 {[%clk 0:35:05]} 19. Rhe1 {[%clk
1:02:46]} 19... Bf8 {[%clk 0:34:12]} 20. Nce2 {[%clk 0:49:43]} 20... e5 {[%clk
0:27:03]} 21. Nxc6 {[%clk 0:43:11]} 21... Qxe3 {[%clk 0:27:27]} 22. fxe3 {[%clk
0:43:39]} 22... bxc6 {[%clk 0:27:54]} 23. Rf1 {[%clk 0:44:02]} 23... Ra7 {[%clk
0:28:15]} 24. c4 {[%clk 0:44:28]} 24... h6 {[%clk 0:25:41]} 25. Rf5 {[%clk
0:44:54]} 25... hxg5 {[%clk 0:25:05]} 26. hxg5 {[%clk 0:45:16]} 26... Kg7 {[%clk
0:24:30]} 27. Ng3 {[%clk 0:42:57]} 27... Be7 {[%clk 0:22:20]} 28. c5 {[%clk
0:36:10]} 28... d5 {[%clk 0:18:55]} 29. Rxe5 {[%clk 0:35:24]} 29... Kf8 {[%clk
0:18:33]} 30. Nf5 {[%clk 0:12:28]} 30... Bxg5 {[%clk 0:16:27]} 31. Rg1 {[%clk
0:12:43]} 31... Bf6 {[%clk 0:13:25]} 32. Rxg8+ {[%clk 0:10:07]} 32... Kxg8
{[%clk 0:13:50]} 33. Re8+ {[%clk 0:10:35]} 33... Kh7 {[%clk 0:14:16]} 34. Kc2
{[%clk 0:08:14]} 34... Kg6 {[%clk 0:11:36]} 35. Nd6 {[%clk 0:06:21]} 35... Re7
{[%clk 0:09:34]} 36. Rg8+ {[%clk 0:06:18]} 36... Kh7 {[%clk 0:05:29]} 37. Re8
{[%clk 0:01:31]} 37... Kg6 {[%clk 0:03:26]} 38. Rc8 {[%clk 0:01:37]} 38... Rxe3
{[%clk 0:02:12]} 39. Rxc6 {[%clk 0:02:01]} 39... Kg5 {[%clk 0:02:15]} 40. Rxa6
{[%clk 0:31:31]} 40... Rh3 {[%clk 0:31:15]} 41. Nxf7+ {[%clk 0:26:34]} 41... Kf5
{[%clk 0:31:24]} 42. Nd6+ {[%clk 0:26:57]} 42... Kf4 {[%clk 0:26:54]} 43. Nc4
{[%clk 0:03:54]} 43... Rh2+ {[%clk 0:23:47]} 44. Nd2 {[%clk 0:04:20]} 44... Bxb2
{[%clk 0:20:25]} 45. Rd6 {[%clk 0:03:19]} 45... Ke5 {[%clk 0:19:39]} 46. Rd8
{[%clk 0:03:34]} 46... Bd4 {[%clk 0:14:42]} 47. Re8+ {[%clk 0:03:47]} 47... Kf6
{[%clk 0:14:27]} 48. c6 {[%clk 0:03:34]} 48... Bb6 {[%clk 0:14:21]} 49. Ra8
{[%clk 0:01:20]} 49... Ke7 {[%clk 0:13:41]} 50. Kd3 {[%clk 0:00:32]} 50... Rh3+
{[%clk 0:13:33]} 51. Kc2 {[%clk 0:00:58]} 51... Kd6 {[%clk 0:13:27]} 52. Rf8
{[%clk 0:00:35]} 52... Kxc6 {[%clk 0:13:07]} 53. Nf3 {[%clk 0:00:52]} 53... Bc5
{[%clk 0:12:32]} 54. Rf6+ {[%clk 0:00:53]} 54... Kc7 {[%clk 0:12:28]} 1/2-1/2

[Variant "Standard"]
[Site "Europe Echecs"]

[Event "Sunway Sitges Chess Festival"]
[Date "2024.12.21"]
[White "Girel, Joseph"]
[Black "Tin, Jingyao"]
[WhiteElo "2494"]
[BlackElo "2480"]
[Round "9.4"]
[Result "0-1"]
[TimeControl "40/5400+30:1800+30"]

1. e4 {[%clk 1:30:56]} 1... e5 {[%clk 1:30:17]} 2. Nf3 {[%clk 1:30:58]} 2... Nc6
{[%clk 1:30:42]} 3. Bb5 {[%clk 1:30:49]} 3... a6 {[%clk 1:31:08]} 4. Ba4 {[%clk
1:31:07]} 4... d6 {[%clk 1:31:32]} 5. O-O {[%clk 1:30:22]} 5... Bd7 {[%clk
1:31:58]} 6. c3 {[%clk 1:26:40]} 6... Nge7 {[%clk 1:32:18]} 7. d4 {[%clk
1:26:24]} 7... Ng6 {[%clk 1:32:40]} 8. Be3 {[%clk 1:23:16]} 8... Be7 {[%clk
1:33:03]} 9. Nbd2 {[%clk 1:23:07]} 9... O-O {[%clk 1:33:24]} 10. Bc2 {[%clk
1:19:28]} 10... exd4 {[%clk 1:30:57]} 11. cxd4 {[%clk 1:13:27]} 11... d5 {[%clk
1:23:40]} 12. Re1 {[%clk 0:57:58]} 12... dxe4 {[%clk 1:17:20]} 13. Nxe4 {[%clk
0:57:24]} 13... Bg4 {[%clk 1:14:39]} 14. Nc5 {[%clk 0:52:06]} 14... Nh4 {[%clk
0:58:00]} 15. Be4 {[%clk 0:52:02]} 15... Bxc5 {[%clk 0:50:57]} 16. dxc5 {[%clk
0:51:57]} 16... Qf6 {[%clk 0:48:03]} 17. Qd5 {[%clk 0:44:59]} 17... Bxf3 {[%clk
0:43:13]} 18. gxf3 {[%clk 0:43:29]} 18... h6 {[%clk 0:36:57]} 19. f4 {[%clk
0:34:45]} 19... Rfe8 {[%clk 0:34:06]} 20. Rad1 {[%clk 0:31:01]} 20... Re7 {[%clk
0:27:10]} 21. h3 {[%clk 0:26:29]} 21... Rae8 {[%clk 0:26:12]} 22. Bb1 {[%clk
0:26:50]} 22... Qxb2 {[%clk 0:25:03]} 23. Kh1 {[%clk 0:25:01]} 23... Qf6 {[%clk
0:24:03]} 24. Rg1 {[%clk 0:24:25]} 24... Kf8 {[%clk 0:21:00]} 25. Qh5 {[%clk
0:21:33]} 25... Rd8 {[%clk 0:18:24]} 26. Rxd8+ {[%clk 0:13:05]} 26... Nxd8
{[%clk 0:18:53]} 27. Qd5 {[%clk 0:13:11]} 27... Qc6 {[%clk 0:14:38]} 28. Qxc6
{[%clk 0:13:26]} 28... Nxc6 {[%clk 0:15:07]} 29. Rg4 {[%clk 0:10:29]} 29... Nf3
{[%clk 0:14:16]} 30. f5 {[%clk 0:09:13]} 30... Rd7 {[%clk 0:13:15]} 31. Be4
{[%clk 0:05:24]} 31... Rd1+ {[%clk 0:12:35]} 32. Kg2 {[%clk 0:05:49]} 32... Nfe5
{[%clk 0:12:56]} 33. Rh4 {[%clk 0:04:57]} 33... f6 {[%clk 0:12:17]} 34. Bc2
{[%clk 0:05:22]} 34... Ra1 {[%clk 0:07:58]} 35. Bb3 {[%clk 0:05:44]} 35... Rg1+
{[%clk 0:06:11]} 36. Kxg1 {[%clk 0:05:56]} 36... Nf3+ {[%clk 0:06:38]} 37. Kf1
{[%clk 0:06:04]} 37... Nxh4 {[%clk 0:07:04]} 38. Be6 {[%clk 0:05:27]} 38... Ne7
{[%clk 0:03:00]} 39. c6 {[%clk 0:01:40]} 39... Nxc6 {[%clk 0:02:40]} 40. Bc8
{[%clk 0:32:05]} 40... b6 {[%clk 0:31:43]} 41. Bf4 {[%clk 0:29:34]} 41... Ne7
{[%clk 0:26:21]} 42. Bb7 {[%clk 0:28:20]} 42... c6 {[%clk 0:25:24]} 43. a4
{[%clk 0:26:41]} 43... Nhxf5 {[%clk 0:24:44]} 44. Bxa6 {[%clk 0:27:06]} 44...
Nd5 {[%clk 0:24:11]} 45. Bd2 {[%clk 0:27:27]} 45... Ke7 {[%clk 0:24:14]} 46. a5
{[%clk 0:26:58]} 46... bxa5 {[%clk 0:23:05]} 47. Bxa5 {[%clk 0:27:26]} 47... Nd6
{[%clk 0:21:58]} 48. Bd2 {[%clk 0:27:29]} 48... c5 {[%clk 0:21:18]} 49. Bd3
{[%clk 0:27:45]} 49... c4 {[%clk 0:20:40]} 50. Bb1 {[%clk 0:27:30]} 50... Ke6
{[%clk 0:20:44]} 51. Ke2 {[%clk 0:27:52]} 51... Ke5 {[%clk 0:20:51]} 0-1

[Variant "Standard"]
[Site "Europe Echecs"]

[Event "Sunway Sitges Chess Festival"]
[Date "2024.12.21"]
[White "Siddharth, Jagadeesh"]
[Black "Dudognon, Thibault"]
[WhiteElo "2510"]
[BlackElo "2411"]
[Round "9.5"]
[Result "1/2-1/2"]
[TimeControl "40/5400+30:1800+30"]

1. e4 {[%clk 1:30:39]} 1... c5 {[%clk 1:23:39]} 2. Nf3 {[%clk 1:31:02]} 2... d6
{[%clk 1:24:07]} 3. d4 {[%clk 1:31:23]} 3... cxd4 {[%clk 1:24:33]} 4. Nxd4
{[%clk 1:31:47]} 4... Nc6 {[%clk 1:25:02]} 5. c4 {[%clk 1:31:33]} 5... Nf6
{[%clk 1:25:20]} 6. Nc3 {[%clk 1:31:48]} 6... Nxd4 {[%clk 1:25:46]} 7. Qxd4
{[%clk 1:32:10]} 7... g6 {[%clk 1:26:13]} 8. Be2 {[%clk 1:31:34]} 8... Bg7
{[%clk 1:26:33]} 9. Be3 {[%clk 1:31:57]} 9... O-O {[%clk 1:26:45]} 10. Qd3
{[%clk 1:32:23]} 10... Bd7 {[%clk 1:21:57]} 11. O-O {[%clk 1:32:40]} 11... a5
{[%clk 1:21:55]} 12. b3 {[%clk 1:18:49]} 12... Bc6 {[%clk 1:20:21]} 13. Rad1
{[%clk 1:12:40]} 13... Nd7 {[%clk 1:19:03]} 14. f4 {[%clk 1:12:59]} 14... b6
{[%clk 1:09:43]} 15. Bd4 {[%clk 1:06:14]} 15... Nc5 {[%clk 1:05:59]} 16. Qe3
{[%clk 1:06:03]} 16... Bxd4 {[%clk 1:04:53]} 17. Rxd4 {[%clk 1:04:36]} 17... Qe8
{[%clk 0:53:49]} 18. f5 {[%clk 1:01:43]} 18... f6 {[%clk 0:49:37]} 19. Nd5
{[%clk 0:57:46]} 19... Bxd5 {[%clk 0:48:04]} 20. exd5 {[%clk 0:57:13]} 20... g5
{[%clk 0:48:07]} 21. h4 {[%clk 0:42:31]} 21... h6 {[%clk 0:47:10]} 22. Rf3
{[%clk 0:42:56]} 22... Qf7 {[%clk 0:42:23]} 23. Rg3 {[%clk 0:40:56]} 23... Qh7
{[%clk 0:38:18]} 24. Rf4 {[%clk 0:16:42]} 24... Kh8 {[%clk 0:31:36]} 25. Rff3
{[%clk 0:15:12]} 25... Qg7 {[%clk 0:24:05]} 26. Rf1 {[%clk 0:10:05]} 26... Nd7
{[%clk 0:21:38]} 27. Kf2 {[%clk 0:05:22]} 27... Ne5 {[%clk 0:12:58]} 28. Qxb6
{[%clk 0:05:12]} 28... a4 {[%clk 0:11:43]} 29. Kg1 {[%clk 0:03:51]} 29... axb3
{[%clk 0:10:38]} 30. axb3 {[%clk 0:04:21]} 30... Rfb8 {[%clk 0:10:20]} 31. Qd4
{[%clk 0:04:28]} 31... Ra3 {[%clk 0:09:07]} 32. Rb1 {[%clk 0:04:32]} 32... Qh7
{[%clk 0:08:00]} 33. Qe4 {[%clk 0:04:58]} 33... gxh4 {[%clk 0:06:28]} 34. Qxh4
{[%clk 0:04:59]} 34... Rg8 {[%clk 0:05:07]} 35. Rxg8+ {[%clk 0:03:36]} 35...
Kxg8 {[%clk 0:05:37]} 36. Qg3+ {[%clk 0:03:50]} 36... Kf8 {[%clk 0:05:07]} 37.
Qf4 {[%clk 0:03:20]} 37... Qg7 {[%clk 0:04:59]} 38. Rb2 {[%clk 0:03:14]} 38...
Ra1+ {[%clk 0:03:27]} 39. Kf2 {[%clk 0:03:43]} 39... h5 {[%clk 0:03:03]} 40. b4
{[%clk 0:33:35]} 40... Qh7 {[%clk 0:30:50]} 41. c5 {[%clk 0:27:16]} 41... Ng4+
{[%clk 0:26:32]} 42. Bxg4 {[%clk 0:26:49]} 42... hxg4 {[%clk 0:28:25]} 43. cxd6
{[%clk 0:10:25]} 43... Qh4+ {[%clk 0:27:01]} 44. Ke3 {[%clk 0:10:52]} 44... Qe1+
{[%clk 0:17:47]} 45. Kd4 {[%clk 0:11:21]} 45... Rc1 {[%clk 0:17:49]} 46. dxe7+
{[%clk 0:09:01]} 46... Ke8 {[%clk 0:16:50]} 47. Rd2 {[%clk 0:07:58]} 47... Rc8
{[%clk 0:16:04]} 48. d6 {[%clk 0:06:10]} 48... Kd7 {[%clk 0:15:01]} 49. b5
{[%clk 0:03:33]} 49... g3 {[%clk 0:10:57]} 50. Kd3 {[%clk 0:02:54]} 50... Qb1+
{[%clk 0:10:24]} 51. Ke2 {[%clk 0:03:22]} 51... Qxb5+ {[%clk 0:10:36]} 52. Rd3
{[%clk 0:02:34]} 52... Qb2+ {[%clk 0:04:10]} 53. Rd2 {[%clk 0:03:03]} 53... Qb5+
{[%clk 0:04:37]} 54. Rd3 {[%clk 0:02:39]} 54... Qb2+ {[%clk 0:05:06]} 1/2-1/2

[Variant "Standard"]
[Site "Europe Echecs"]

[Event "Sunway Sitges Chess Festival"]
[Date "2024.12.21"]
[White "Isanzhulov, Arystan"]
[Black "Gholami Orimi, Mahdi"]
[WhiteElo "2395"]
[BlackElo "2402"]
[Round "9.6"]
[Result "0-1"]
[TimeControl "40/5400+30:1800+30"]

1. e4 {[%clk 1:30:53]} 1... c5 {[%clk 1:30:55]} 2. Nf3 {[%clk 1:31:17]} 2... Nc6
{[%clk 1:31:18]} 3. Bb5 {[%clk 1:23:29]} 3... e6 {[%clk 1:29:57]} 4. Bxc6 {[%clk
1:18:55]} 4... bxc6 {[%clk 1:24:24]} 5. d3 {[%clk 1:18:58]} 5... d5 {[%clk
1:24:16]} 6. Qe2 {[%clk 1:09:06]} 6... Ne7 {[%clk 1:06:11]} 7. b3 {[%clk
1:08:12]} 7... Ng6 {[%clk 1:04:05]} 8. h4 {[%clk 1:05:51]} 8... Qc7 {[%clk
1:00:18]} 9. Bb2 {[%clk 0:46:19]} 9... c4 {[%clk 0:46:11]} 10. dxc4 {[%clk
0:32:38]} 10... dxc4 {[%clk 0:42:15]} 11. g3 {[%clk 0:25:21]} 11... Ba6 {[%clk
0:32:23]} 12. Nbd2 {[%clk 0:20:10]} 12... Qa5 {[%clk 0:29:21]} 13. c3 {[%clk
0:15:18]} 13... cxb3 {[%clk 0:28:07]} 14. Nc4 {[%clk 0:15:44]} 14... Qc5 {[%clk
0:22:17]} 15. axb3 {[%clk 0:15:32]} 15... Bxc4 {[%clk 0:22:45]} 16. Qxc4 {[%clk
0:13:12]} 16... Qxc4 {[%clk 0:23:04]} 17. bxc4 {[%clk 0:13:41]} 17... Bd6 {[%clk
0:18:20]} 18. Ba3 {[%clk 0:12:13]} 18... Bxa3 {[%clk 0:06:05]} 19. Rxa3 {[%clk
0:12:41]} 19... O-O {[%clk 0:06:27]} 20. h5 {[%clk 0:09:40]} 20... Ne7 {[%clk
0:06:54]} 21. Ke2 {[%clk 0:10:09]} 21... Rfb8 {[%clk 0:07:07]} 22. Rd1 {[%clk
0:09:37]} 22... Rb7 {[%clk 0:07:05]} 23. Ne5 {[%clk 0:09:27]} 23... f6 {[%clk
0:04:06]} 24. Nd3 {[%clk 0:07:11]} 24... e5 {[%clk 0:03:27]} 25. Nc5 {[%clk
0:06:46]} 25... Rc7 {[%clk 0:03:40]} 26. Ne6 {[%clk 0:06:37]} 26... Rb7 {[%clk
0:04:03]} 27. Ra5 {[%clk 0:05:30]} 27... g6 {[%clk 0:03:03]} 28. hxg6 {[%clk
0:04:51]} 28... hxg6 {[%clk 0:03:17]} 29. Rd6 {[%clk 0:04:28]} 29... a6 {[%clk
0:02:50]} 30. Nc5 {[%clk 0:04:01]} 30... Rb2+ {[%clk 0:03:14]} 31. Ke3 {[%clk
0:01:53]} 31... Rc2 {[%clk 0:02:54]} 32. Ra3 {[%clk 0:02:22]} 32... f5 {[%clk
0:02:31]} 33. Re6 {[%clk 0:02:51]} 33... Kf7 {[%clk 0:02:07]} 34. Rxe5 {[%clk
0:03:03]} 34... a5 {[%clk 0:01:34]} 35. f3 {[%clk 0:01:54]} 35... Rg2 {[%clk
0:01:11]} 36. Ra1 {[%clk 0:02:00]} 36... Ra7 {[%clk 0:01:05]} 37. Rh1 {[%clk
0:01:44]} 37... Kg8 {[%clk 0:00:45]} 38. Re6 {[%clk 0:00:58]} 38... a4 {[%clk
0:00:40]} 39. Rd6 {[%clk 0:00:50]} 39... fxe4 {[%clk 0:00:32]} 40. Rd8+ {[%clk
0:30:42]} 40... Kg7 {[%clk 0:30:56]} 41. Rdh8 {[%clk 0:20:27]} 41... exf3 {[%clk
0:13:03]} 42. Kxf3 {[%clk 0:09:00]} 42... Rc2 {[%clk 0:13:29]} 43. Kg4 {[%clk
0:09:25]} 43... Re2 {[%clk 0:12:48]} 44. Nd3 {[%clk 0:01:41]} 44... Re3 {[%clk
0:07:07]} 45. Nf4 {[%clk 0:00:39]} 45... Kf6 {[%clk 0:04:58]} 46. R1h7 {[%clk
0:00:41]} 46... Ke5 {[%clk 0:02:00]} 47. c5 {[%clk 0:00:59]} 47... g5 {[%clk
0:01:39]} 48. Re8 {[%clk 0:00:34]} 48... gxf4 {[%clk 0:01:35]} 49. Rexe7+ {[%clk
0:00:33]} 49... Rxe7 {[%clk 0:02:02]} 50. Rxe7+ {[%clk 0:01:00]} 50... Kf6
{[%clk 0:01:19]} 51. Ra7 {[%clk 0:00:43]} 51... fxg3 {[%clk 0:01:13]} 52. Kh3
{[%clk 0:00:47]} 52... Ke5 {[%clk 0:00:48]} 53. Rxa4 {[%clk 0:00:33]} 53... Kd5
{[%clk 0:00:40]} 54. Rg4 {[%clk 0:00:43]} 54... Kxc5 {[%clk 0:00:45]} 55. c4
{[%clk 0:00:58]} 55... Kb4 {[%clk 0:01:02]} 56. Kg2 {[%clk 0:01:16]} 56... c5
{[%clk 0:00:54]} 57. Kf1 {[%clk 0:01:14]} 57... Kc3 {[%clk 0:01:06]} 58. Kg1
{[%clk 0:01:33]} 58... Kd3 {[%clk 0:01:09]} 59. Kg2 {[%clk 0:00:46]} 59... Re4
{[%clk 0:01:06]} 60. Rxg3+ {[%clk 0:00:57]} 60... Kxc4 {[%clk 0:01:35]} 61. Kf2
{[%clk 0:01:12]} 61... Kd4 {[%clk 0:01:26]} 62. Rg7 {[%clk 0:01:22]} 62... c4
{[%clk 0:01:44]} 63. Rc7 {[%clk 0:01:48]} 63... Kd3 {[%clk 0:02:07]} 64. Kf3
{[%clk 0:02:14]} 64... Re8 {[%clk 0:02:20]} 65. Kf2 {[%clk 0:02:41]} 65... c3
{[%clk 0:02:42]} 66. Kf1 {[%clk 0:03:08]} 66... Kd2 {[%clk 0:03:04]} 67. Kf2
{[%clk 0:03:34]} 67... Rf8+ {[%clk 0:03:29]} 68. Kg2 {[%clk 0:04:00]} 68... c2
{[%clk 0:03:51]} 69. Rd7+ {[%clk 0:04:25]} 69... Kc1 {[%clk 0:04:16]} 70. Rb7
{[%clk 0:04:49]} 70... Rd8 {[%clk 0:04:41]} 71. Kf2 {[%clk 0:05:15]} 71... Kd1
{[%clk 0:05:03]} 0-1

[Variant "Standard"]
[Site "Europe Echecs"]